Cogmind - Beta 17.1 @@@ ROGUE MODE // 2026.09.18 @ 18:06:56 Player: Clog Result: Destroyed by as-29070 with Assembled Rifle Performance ------------- Evolutions (0) 0 Regions Visited (2) 400 Robots Destroyed (16) 80 Value Destroyed (393) 393 Prototype IDs (0) 0 Alien Tech Used (0) 0 Bonus (0) 0 TOTAL SCORE: 873 Bonus ------- None Cogmind --------- Core Integrity 0/250 Matter 292/300 Energy 65/100 System Corruption 11% Temperature Cool (0) Movement Core (200) Ox3 Location -10/Mines Parts ------- > --- POWER (1) -------- (None) > --- PROPULSION (2) --- (None) > --- UTILITY (2) ------ Medium Storage Unit > --- WEAPON (2) ------- (None) > --- INVENTORY (10) --- Light Ion Engine Light Treads Light Treads Wheel Large Storage Unit Seismic Detector Datajack Mining Laser Peak State ------------ > --- POWER ------------ Light Ion Engine > --- PROPULSION ------- Aluminum Leg Aluminum Leg > --- UTILITY ---------- Improved Heat Sink Medium Storage Unit > --- WEAPON ----------- Medium Laser Small Laser > --- INVENTORY -------- Light Ion Engine Light Treads Light Treads Aluminum Leg Aluminum Leg Wheel Large Storage Unit EM Pulse Gun Datajack Mining Laser [Rating: 10] Favorites ----------- Power Light Ion Engine Engine Light Ion Engine Propulsion Aluminum Leg Leg Aluminum Leg Utility Medium Storage Unit Device Improved Heat Sink Storage Medium Storage Unit Weapon Small Laser Energy Gun Small Laser Ballistic Gun Light Assault Rifle Build | -11 -10 -10 ------- Run | Yrd Mat Min Slots Evolved . | . . . Power . | . . . Propulsion . | . . . Utility . | . . . Weapon . | . . . Parts Attached 10 | 2 6 2 Power 1 | . 1 . Engine 1 | . 1 . Core . | . . . Reactor . | . . . Propulsion 2 | . 2 . Treads . | . . . Leg 2 | . 2 . Wheel . | . . . Hover . | . . . Flight . | . . . Utility 3 | 1 2 . Device 2 | 1 1 . Storage 1 | . 1 . Processor . | . . . Hackware . | . . . Protection . | . . . Artifact . | . . . Weapon 4 | 1 1 2 Energy Gun 3 | . 1 2 Energy Cannon . | . . . Ballistic Gun 1 | 1 . . Ballistic Cannon . | . . . Launcher . | . . . Special Weapon . | . . . Impact Weapon . | . . . Slashing Weapon . | . . . Piercing Weapon . | . . . Special Melee Weapon . | . . . Unidentified Prototypes . | . . . Parts Lost 9 | . 1 8 Power 1 | . . 1 Propulsion 2 | . . 2 Utility 2 | . 1 1 Weapon 4 | . . 4 Highest Loss Streak 8 | . 1 8 To Critical Strikes . | . . . Average Backups 9 | 6 9 9 Power 1 | 1 1 1 Propulsion 3 | 3 3 3 Utility 1 | . 1 2 Weapon 2 | 1 2 2 Tool/Special . | . . . Unused Backups 18 | 6 3 9 Power 2 | 1 . 1 Propulsion 8 | 3 2 3 Utility 4 | 1 1 2 Weapon 3 | 1 . 2 Tool/Special 1 | . . 1 Average Slot Usage (%) 95 | . 97 85 Engine 13 | . 14 11 Leg 27 | . 28 22 Device 12 | . 13 10 Storage 14 | . 14 14 Energy Gun 24 | . 24 24 Ballistic Gun 1 | . 2 . Peak Build Rating 10 | 7 10 10 Average Rating 8 | 6 9 8 On Entrance 7 | 6 7 10 Avg Prop Armor Cover (%) . | . . . Naked Turns . | . . . Heaviest Build 19 | 11 19 19 Greatest Support 20 | 20 20 20 Greatest Overweight (x) . | . . . Average Overweight (x) . | . . . Largest Inventory Capacity 10 | 8 10 10 Average Capacity 9 | 8 9 10 Most Carried 10 | 7 10 10 Average Carried 9 | 5 9 9 Final Capacity 10 | 8 10 10 Final Carried 10 | 6 10 8 Class Distribution -------------------- 100% | Mutant Dominant Class ---------------- Mutant | -10/Materials Mutant | -10/Mines Resources | -11 -10 -10 ----------- Run | Yrd Mat Min Matter Collected 343 | 221 105 17 Remotely . | . . . Salvage Created 673 | 90 538 45 Parts 34 | 12 22 . Haulers Intercepted 2 | . 2 . Recyclers Shooed 2 | 1 1 . Parts Field Recycled . | . . . Retrieved Matter . | . . . Parts Self-Destructed . | . . . Prevented . | . . . Parts Restored . | . . . Kills | -11 -10 -10 ------- Run | Yrd Mat Min Combat Hostiles Destroyed 12 | . 9 3 Guns 12 | . 9 3 Classes Destroyed 5 | 1 3 1 Tunneler 4 | 4 . . Hauler 2 | . 2 . Operator 1 | . 1 . Grunt 9 | . 9 . Assembled 3 | . . 3 Best Kill Streak 2 | 1 2 2 Combat Bots Only 2 | . 2 2 Max Kills in Single Turn 2 | 1 1 2 Gunslinging 1 | . . 1 Exploded . | . . . Melee . | . . . Uniques/NPCs Destroyed . | . . . Combat | -11 -10 -10 -------- Run | Yrd Mat Min Hostile Shots Fired 82 | . 47 35 Missed 15 | . 9 6 Hits 67 | . 38 29 Melee 11 | . . 11 Projectile 56 | . 38 18 Critical Strikes 1 | . 1 . Damage Taken 1033 | . 507 526 Core 259 | . 133 126 Absorbed by Shields . | . . . Core Remaining (%) 100 | 100 . . Volleys Fired 84 | 13 59 12 Largest 2 | 2 2 2 Hottest 90 | 60 90 90 Shots Fired 161 | 26 113 22 Gun 161 | 26 113 22 Cannon . | . . . Launcher . | . . . Special . | . . . Kinetic 30 | 13 17 . Thermal 125 | 13 96 16 Explosive . | . . . Electromagnetic 6 | . . 6 Robot Hit Streak 15 | 4 15 3 Robot Miss Streak 5 | 2 5 2 Penetration Max . | . . . Secondary Targets 2 | . 1 1 Max Gunslinging Chain 1 | . 1 1 Shots Hit Robots 103 | 17 74 12 Core Hits 48 | 9 32 7 Critical Kills . | . . . Critical Parts Destroyed . | . . . Critical Strikes 1 | . 1 . Burn 1 | . 1 . Melee Attacks . | . . . Impact . | . . . Slashing . | . . . Piercing . | . . . Sneak Attacks . | . . . Combat Hostiles . | . . . Follow-up Attacks . | . . . Damage Inflicted 1149 | 161 818 170 Guns 1143 | 161 812 170 Cannons . | . . . Explosions . | . . . Melee . | . . . Ramming 6 | . 6 . Kinetic 231 | 110 121 . Thermal 856 | 51 691 114 Explosive . | . . . Electromagnetic 56 | . . 56 Impact . | . . . Slashing . | . . . Piercing . | . . . Highest Corruption 11 | . 2 11 Average Corruption 2 | . 2 3 Corruption Purged . | . . . Corruption Blocked . | . . . Effects 11 | . 7 4 Message Errors 1 | . 1 . Matter Fused 5 | . 3 2 Heat Flow Errors 1 | . . 1 Energy Discharges 2 | . 1 1 Misfires 1 | . 1 . Alerts 1 | . 1 . Overload Shots . | . . . Overflow Damage . | . . . Projectiles . | . . . Explosions . | . . . Melee . | . . . Knockbacks . | . . . Impact . | . . . Kinetic . | . . . Secondary . | . . . Self-Inflicted Damage . | . . . Shots . | . . . Rammed . | . . . Targets Rammed 2 | . 2 . Kicked 2 | . 2 . Crushed . | . . . Highest Temperature 189 | 40 189 127 Average Temperature 60 | 16 65 95 Received Heat Transfer 312 | . 312 . Siege Activations . | . . . Martial Activations . | . . . Shielding Activations . | . . . Robots Disrupted . | . . . Combat Hostiles . | . . . Robots Corrupted . | . . . Combat Hostiles . | . . . Parts Fried . | . . . Impact Corruptions . | . . . Robots Melted . | . . . Combat Hostiles . | . . . Parts Melted 5 | 1 4 . Heat Transferred 2298 | 125 1863 310 Parts Sabotaged . | . . . Parts Stolen . | . . . Parts Stripped . | . . . Power Chain Reactions . | . . . Alert | -11 -10 -10 ------- Run | Yrd Mat Min Maximum Alert Level . | . . . Low Security (%) 100 | 100 100 100 Level 1 . | . . . Level 2 . | . . . Level 3 . | . . . Level 4 . | . . . Level 5 . | . . . High Security . | . . . Max Security . | . . . Peak Influence 106 | 5 106 34 Initial 34 | . . 34 Average 18 | 1 22 12 Influence Increases 342 | 20 322 . Destroy 0b10 Robot/C 180 | . 180 . Destroy 0b10 Robot/NC 35 | 20 15 . Destroy Leader 54 | . 54 . Successful Hack 12 | . 12 . Select Force Hacks 60 | . 60 . Destroy Structure 1 | . 1 . Influence Decreases 342 | 20 234 88 Entered New Map 54 | . . 54 Time Decay 278 | 20 224 34 Lost Part 10 | . 10 . Squads Dispatched 3 | . 3 . Investigation 2 | . 2 . Extermination . | . . . Reinforcement 1 | . 1 . Assault . | . . . Garrison . | . . . Intercept . | . . . Searches Triggered . | . . . Construction Impeded . | . . . Haulers Reinforced . | . . . Active Scanning Responses . | . . . Cargo Convoy Interrupts . | . . . Stealth | -11 -10 -10 --------- Run | Yrd Mat Min Distress Signals . | . . . Communications Jammed . | . . . Distress Signals . | . . . Times Spotted 27 | . 19 8 Peak Tracking Total 10 | . 3 10 Tactical Retreats 1 | . . 1 Traps | -11 -10 -10 ------- Run | Yrd Mat Min Traps Triggered 2 | . 2 . Indirectly . | . . . Trap Hack Attempts . | . . . Triggered . | . . . Disarmed . | . . . Reprogrammed . | . . . Reused . | . . . Traps Extracted . | . . . Installed . | . . . Triggered . | . . . Machines | -11 -10 -10 ---------- Run | Yrd Mat Min Machines Disabled . | . . . Max in Single Turn . | . . . Machines Repaired . | . . . Machines Dismantled . | . . . Machines Sabotaged . | . . . Overloaded Fab Kills . | . . . Hacking | -11 -10 -10 --------- Run | Yrd Mat Min Machines Accessed 7 | . 7 . Terminals 5 | . 5 . Fabricators . | . . . Repair Stations . | . . . Recycling Units 2 | . 2 . Scanalyzers . | . . . Garrison Access . | . . . Total Hacks 8 | . 8 . Successful 7 | . 7 . Failed 1 | . 1 . Catastrophic . | . . . Database Lockouts . | . . . Manual 8 | . 8 . Terminals 6 | . 6 . Fabricators . | . . . Repair Stations . | . . . Recycling Units 2 | . 2 . Scanalyzers . | . . . Garrison Access . | . . . Terminal Hacks . | . . . Fabricator Hacks . | . . . Repair Station Hacks . | . . . Recycling Unit Hacks . | . . . Scanalyzer . | . . . Garrison Access Hacks . | . . . Unauthorized Hacks 7 | . 7 . Terminals 5 | . 5 . Skim 5 | . 5 . Fabricators . | . . . Repair Stations . | . . . Recycling Units 2 | . 2 . Tunnel 2 | . 2 . Scanalyzers . | . . . Garrison Access . | . . . Data Cores Recovered . | . . . Used . | . . . Hacking Detections 1 | . 1 . Full Trace Events . | . . . Feedback Events . | . . . Feedback Blocked . | . . . Robot Schematics Acquired . | . . . Robots Built . | . . . Authchips . | . . . Time . | . . . Total Robot Build Rating . | . . . Part Schematics Acquired . | . . . Parts Built . | . . . Authchips . | . . . Time . | . . . Total Part Build Rating . | . . . Part Studies Acquired . | . . . Parts Repaired . | . . . Time . | . . . Parts Recycled . | . . . Recycled Matter . | . . . Retrieved Matter . | . . . Retrieved Components . | . . . Parts Scanalyzed . | . . . Part Schematics Acquired . | . . . Parts Damaged . | . . . Bothacking | -11 -10 -10 ------------ Run | Yrd Mat Min Used RIF Installer . | . . . Robots Hacked . | . . . Non-combat . | . . . Combat . | . . . Robot Hacks Applied . | . . . Relay Couplers Released . | . . . Fabnet Peak Effective % . | . . . Robots Rewired . | . . . Allies Hacked . | . . . Hacks Repelled . | . . . Allies | -11 -10 -10 -------- Run | Yrd Mat Min Total Allies . | . . . Largest Group . | . . . Highest-Rated Group . | . . . Highest-Rated Ally . | . . . Total Orders . | . . . Ally Attacks . | . . . Total Damage . | . . . Kills . | . . . Allies Corrupted . | . . . Allies Melted . | . . . Intel | -11 -10 -10 ------- Run | Yrd Mat Min Active Infowar (turns) 53 | 2 51 . Seismic 53 | 2 51 . Robot Analysis Total . | . . . Derelict Logs Recovered . | . . . Drone Launches . | . . . Drone Recoveries . | . . . Exploration | -11 -10 -10 ------------- Run | Yrd Mat Min Turns Passed 1160 | 130 909 121 Spaces Moved 675 | 61 585 29 Core . | . . . Treads . | . . . Legs 675 | 61 585 29 Wheels . | . . . Hover . | . . . Flight . | . . . Fastest Speed 120 | 120 120 120 Average Speed 120 | 120 120 120 Slowest Speed 120 | 120 120 120 Overloaded Moves . | . . . Propulsion Burnouts . | . . . Robots Hopped . | . . . Potential Cave-ins . | . . . Cave-ins Triggered . | . . . Exploration Rate (%) 31 | 3 86 6 Regions Visited 2 Branch Regions 1 Pre-discovered Areas 2 | . 2 . Known Exits Taken . | . . . Unknown Exits Taken 2 | 1 1 . Scrap Searched . | . . . Spaces Dug . | . . . Terrain Destroyed . | . . . Melee . | . . . Projectile . | . . . AOE . | . . . Terrain Rammed . | . . . Walls Destroyed . | . . . Machines Disabled . | . . . Actions | -11 -10 -10 --------- Run | Yrd Mat Min Total 872 | 94 685 93 Wait 83 | 16 17 50 Move 673 | 60 584 29 Hop . | . . . Pick Up 11 | 2 9 . Fast Attach 1 | . 1 . Attach 5 | 1 2 2 Detach 1 | . 1 . Swap 5 | 1 4 . Drop 7 | 1 6 . Fire 84 | 13 59 12 Melee . | . . . Ram . | . . . Kick 2 | . 2 . Crush . | . . . Escape Stasis . | . . . Rewire . | . . . Trap . | . . . Miscellaneous . | . . . Route ------- -11/Scrapyard -10/Materials (discovered 5 exits: *Mat x3 / [*Min] / *Sub) -10/Mines (discovered 2 exits: Mat x2) History --------- Turn | Location | Event 9 | -11/Scrapyard | Discovered new exit (range 3) 131 | -11/Scrapyard | Entered Materials 302 | -10/Materials | Build established: Mutant 410 | -10/Materials | Discovered new exit (range 12) 453 | -10/Materials | Discovered new exit (range 10) 506 | -10/Materials | Identified exit to Materials 536 | -10/Materials | Learned Storage trap positions 554 | -10/Materials | Learned location of 1 exit from Recycling 565 | -10/Materials | Learned Storage trap positions 566 | -10/Materials | Learned Storage stockpile data 567 | -10/Materials | Identified exit to Subcaves 941 | -10/Materials | Core integrity fell below 50% 1040 | -10/Materials | Entered Mines 1041 | -10/Mines | Assembled infested the area 1141 | -10/Mines | System corruption reached 10% 1151 | -10/Mines | Core integrity fell below 20% 1161 | -10/Mines | Destroyed by as-29070 with Assembled Rifle Last Messages --------------- 01085_ Acquired 14 matter. 01087_ Acquired 3 matter. 01123_ System corrupted: Heat flow error (+154). 01124_ Knocked back. 01134_ Imp. Heat Sink destroyed. 01134_ System corrupted by crushing effect (+1). 01135_ Sml. Laser destroyed. 01137_ Aluminum Leg destroyed. 01137_ System corrupted by crushing effect (+1). 01140_ Aluminum Leg destroyed. 01140_ Ion Engine destroyed. 01140_ System corrupted by crushing effect (+3). 01140_ System corrupted by crushing effect (+4). 01141_ Med. Laser destroyed. 01143_ as-06221 destroyed. 01145_ System corrupted: Energy discharge (-30). 01147_ EM Pulse Gun destroyed. 01156_ Knocked back. 01159_ EM Pulse Gun destroyed. 01160_ System corrupted: Matter fused (-8). Map ----- +----------------------------------------------------+ | ?????????????????????????????????????????????????? | | ?????????????????????????????????????????????????? | | ?????????????????????????????????????????????????? | | ?????????????????????????????????????????????????? | | ?????????????????????????????????????????????????? | | ?????????????????????????????????????????????????? | | ?????????????????????????????????????????????????? | | ?????????????????????????????????????????????????? | | ?????????????????????????????????????????????????? | | ?????????????????????????????????????????????????? | | ?????????????????????????????????????????????????? | | ?????????????????????????????????????????????????? | | ?????????????????????????????????????????????????? | | ?????????????????????????????????????????????????? | | ?????????????????????????????????????????????????? | | ?????????????????????????????????????????????????? | | ?????????????????????????????????????????????????? | | ?????????????????????????????????????????????????? | | ?????????????????????????????????????????????????? | | ?????????????????????????????????????????????????? | | ??????????????????????#####??????????????????????? | | ????????????#????????## ##?????????????????????? | | ????????????# ???????# ##????????????????????? | | ??????????### ??????# ##???????????????????? | | ???????????* ?????## ##??????????????????? | | ???????????## ###??##%@ #??????????????????? | | ???????????# ??# a #??????????????????? | | ??????????## " ??##aa ##??????????????????? | | ??????????# ??# ####???????????????????? | | ?????????# ###a#??????????????????????? | | ?????????# a #??????????????????????? | | ?????????# ############??????????????????????? | | ?????????????????????????????????????????????????? | | ?????????????????????????????????????????????????? | | ?????????????????????????????????????????????????? | | ?????????????????????????????????????????????????? | | ?????????????????????????????????????????????????? | | ?????????????????????????????????????????????????? | | ?????????????????????????????????????????????????? | | ?????????????????????????????????????????????????? | | ?????????????????????????????????????????????????? | | ?????????????????????????????????????????????????? | | ?????????????????????????????????????????????????? | | ?????????????????????????????????????????????????? | | ?????????????????????????????????????????????????? | | ?????????????????????????????????????????????????? | | ?????????????????????????????????????????????????? | | ?????????????????????????????????????????????????? | | | | | +----------------------------------------------------+ Best States ------------- Heat Dissipation 39 Energy Generation 10 Energy Capacity 250 Matter Stores 300 Matter Capacity 300 Sight Range 16 Terrain Scan Density 10 Evasion (%) 55 Item Schematics ----------------- None Robot Schematics ------------------ None Fabricated ------------ Nothing Repaired ---------- Nothing Studied --------- None Alien Tech Used ----------------- None Achievements -------------- None Challenges ------------ None Game ------ Seed NovaReflectiveParser Manual? 0 Play Time 00:09:20 Cumulative 63.0 hours Start 2026.09.18 @ 17:54:07 End 2026.09.18 @ 18:06:56 Sessions 3 Manual Loads 0 Difficulty Rogue Special Mode None Game No. 62 Rogue 59 Adventurer 3 Explorer 0 Win Type - Total 3 Types 2/1/0/0/0/0/0/0/0/0 Lore% 53 Gallery% 43 Achievement% 45 Wizard Run 0 Options --------- Layout 1 ASCII 0 Keyboard 0 Movement Mouse Keybinds 0 Fullscreen 1 Font 32/SmallcapsGlow Map View 50x35 Zoom Use 0% Tactical HUD 1 Map Filters NONE Filters NONE Steam 1 RUN: 3060d30b-c659-4277-9b6b-20a618c561e1